[Event "Late-Titled-Tuesday-Blitz-November-28-2023"]
[Site "Chess.com"]
[Date "2023.11.28"]
[Round "2"]
[White "MetiForce"]
[Black "ahkashefi2800"]
[Result "0-1"]
[WhiteElo "2916"]
[BlackElo "2580"]
[TimeControl "180+1"]
[EndTime "14:17:21 PST"]
[Termination "ahkashefi2800 won by checkmate"]

1. c4 {[%clk 0:02:50.3]} 1... c6 {[%clk 0:02:53.7]} 2. Nf3 {[%clk 0:02:49.8]}
2... d5 {[%clk 0:02:53.3]} 3. e3 {[%clk 0:02:50.5]} 3... Nf6 {[%clk 0:02:53.5]}
4. d4 {[%clk 0:02:50.3]} 4... Bg4 {[%clk 0:02:53.3]} 5. Qb3 {[%clk 0:02:48.5]}
5... Qb6 {[%clk 0:02:51.9]} 6. Ne5 {[%clk 0:02:48.1]} 6... Bf5 {[%clk
0:02:48.9]} 7. Nc3 {[%clk 0:02:47.7]} 7... e6 {[%clk 0:02:48.3]} 8. c5 {[%clk
0:02:47.7]} 8... Qc7 {[%clk 0:02:47.6]} 9. f4 {[%clk 0:02:44.4]} 9... Nbd7
{[%clk 0:02:45]} 10. Be2 {[%clk 0:02:43.3]} 10... Ne4 {[%clk 0:02:35.9]} 11. O-O
{[%clk 0:02:38.4]} 11... f6 {[%clk 0:02:31.4]} 12. Nxd7 {[%clk 0:02:35]} 12...
Qxd7 {[%clk 0:02:31]} 13. Bf3 {[%clk 0:02:35.9]} 13... Be7 {[%clk 0:02:17.5]}
14. Nxe4 {[%clk 0:02:25.5]} 14... Bxe4 {[%clk 0:02:11.6]} 15. Bd2 {[%clk
0:02:14.5]} 15... f5 {[%clk 0:02:08]} 16. Bxe4 {[%clk 0:02:12.4]} 16... dxe4
{[%clk 0:02:04]} 17. Qc2 {[%clk 0:02:04.8]} 17... O-O {[%clk 0:02:03.4]} 18. b4
{[%clk 0:02:04.8]} 18... Bf6 {[%clk 0:01:59.2]} 19. a4 {[%clk 0:02:02.1]} 19...
a6 {[%clk 0:01:59.2]} 20. Rab1 {[%clk 0:01:43.9]} 20... Qd5 {[%clk 0:01:56.9]}
21. Be1 {[%clk 0:01:38.9]} 21... Rfd8 {[%clk 0:01:54.8]} 22. Bg3 {[%clk
0:01:34.9]} 22... Kf7 {[%clk 0:01:53.4]} 23. Rb3 {[%clk 0:01:31.7]} 23... Rd7
{[%clk 0:01:51.1]} 24. Rfb1 {[%clk 0:01:31.7]} 24... h6 {[%clk 0:01:48.2]} 25.
h3 {[%clk 0:01:32]} 25... Kg6 {[%clk 0:01:48.1]} 26. Kh2 {[%clk 0:01:31.3]}
26... Kh7 {[%clk 0:01:48]} 27. b5 {[%clk 0:01:31.7]} 27... axb5 {[%clk
0:01:48.1]} 28. axb5 {[%clk 0:01:32.6]} 28... Re7 {[%clk 0:01:44]} 29. R1b2
{[%clk 0:01:11]} 29... Ra1 {[%clk 0:01:39.2]} 30. Qe2 {[%clk 0:01:03.7]} 30...
Re8 {[%clk 0:01:21.1]} 31. bxc6 {[%clk 0:00:53.7]} 31... bxc6 {[%clk 0:01:21.1]}
32. Rb7 {[%clk 0:00:35.7]} 32... Kg6 {[%clk 0:00:55.7]} 33. Qf2 {[%clk 0:00:31]}
33... Qc4 {[%clk 0:00:53.3]} 34. Bh4 {[%clk 0:00:31.1]} 34... Qf1 {[%clk
0:00:45.5]} 35. Bxf6 {[%clk 0:00:18.4]} 35... Qh1+ {[%clk 0:00:16]} 36. Kg3
{[%clk 0:00:18.3]} 36... Kxf6 {[%clk 0:00:16.9]} 37. Rd7 {[%clk 0:00:10.4]}
37... Rf1 {[%clk 0:00:14.9]} 38. Qe2 {[%clk 0:00:05.4]} 38... Re1 {[%clk
0:00:02.9]} 39. Rbb7 {[%clk 0:00:05.9]} 39... Rxe2 {[%clk 0:00:02.2]} 40. Rf7+
{[%clk 0:00:05.8]} 40... Kg6 {[%clk 0:00:02.4]} 41. Rxg7+ {[%clk 0:00:06.7]}
41... Kh5 {[%clk 0:00:02.7]} 42. Rbf7 {[%clk 0:00:02.7]} 42... Rxg2# {[%clk
0:00:02.5]} 0-1

[Event "Late-Titled-Tuesday-Blitz-November-28-2023"]
[Site "Chess.com"]
[Date "2023.11.28"]
[Round "2"]
[White "TheMagician"]
[Black "temiksmozg"]
[Result "0-1"]
[WhiteElo "2305"]
[BlackElo "2593"]
[TimeControl "180+1"]
[EndTime "14:17:21 PST"]
[Termination "temiksmozg won on time"]

1. e4 {[%clk 0:02:59.8]} 1... h5 {[%clk 0:03:00.4]} 2. d4 {[%clk 0:02:59.2]}
2... a5 {[%clk 0:03:00.8]} 3. Bd3 {[%clk 0:02:57.5]} 3... Ra6 {[%clk 0:03:00]}
4. Ne2 {[%clk 0:02:57.6]} 4... Rg6 {[%clk 0:02:58.7]} 5. Nf4 {[%clk 0:02:56.3]}
5... Rd6 {[%clk 0:02:53.5]} 6. c3 {[%clk 0:02:54.8]} 6... g6 {[%clk 0:02:53.4]}
7. e5 {[%clk 0:02:54.9]} 7... Rb6 {[%clk 0:02:53.1]} 8. Nd2 {[%clk 0:02:53.2]}
8... Bh6 {[%clk 0:02:52.5]} 9. Nc4 {[%clk 0:02:52.8]} 9... Ra6 {[%clk
0:02:50.4]} 10. a4 {[%clk 0:02:48.1]} 10... d5 {[%clk 0:02:47]} 11. Na3 {[%clk
0:02:43.1]} 11... Rb6 {[%clk 0:02:42]} 12. O-O {[%clk 0:02:35]} 12... Bg4 {[%clk
0:02:32.7]} 13. Qc2 {[%clk 0:02:26.8]} 13... Bxf4 {[%clk 0:02:29.8]} 14. Bxf4
{[%clk 0:02:26]} 14... e6 {[%clk 0:02:30.4]} 15. Nb5 {[%clk 0:02:18.8]} 15...
Ne7 {[%clk 0:02:24]} 16. b4 {[%clk 0:02:18.3]} 16... Ra6 {[%clk 0:02:21.8]} 17.
Bg5 {[%clk 0:02:12]} 17... Bf5 {[%clk 0:02:17.7]} 18. Bf6 {[%clk 0:02:10.5]}
18... Rg8 {[%clk 0:02:16.2]} 19. Qd2 {[%clk 0:01:51.5]} 19... Bxd3 {[%clk
0:02:10.8]} 20. Qxd3 {[%clk 0:01:51.4]} 20... Nd7 {[%clk 0:02:09.1]} 21. Bg5
{[%clk 0:01:45.4]} 21... Nb6 {[%clk 0:01:43.6]} 22. Nd6+ {[%clk 0:01:37.5]}
22... cxd6 {[%clk 0:01:40.2]} 23. Qb5+ {[%clk 0:01:35]} 23... Qd7 {[%clk
0:01:38.4]} 24. bxa5 {[%clk 0:01:35.5]} 24... Nc4 {[%clk 0:01:29.3]} 25. Rfb1
{[%clk 0:01:26.2]} 25... Nxa5 {[%clk 0:01:24.2]} 26. exd6 {[%clk 0:01:22.3]}
26... Nc8 {[%clk 0:01:20.8]} 27. Bf4 {[%clk 0:01:16.8]} 27... g5 {[%clk
0:01:13.8]} 28. Be5 {[%clk 0:01:14.7]} 28... f6 {[%clk 0:01:12.2]} 29. Bxf6
{[%clk 0:01:12.6]} 29... Nxd6 {[%clk 0:01:12.6]} 30. Qb2 {[%clk 0:01:08.1]}
30... Kf7 {[%clk 0:01:05.6]} 31. Be5 {[%clk 0:01:03.1]} 31... Ndc4 {[%clk
0:01:05.9]} 32. Qc2 {[%clk 0:01:03.2]} 32... Nxe5 {[%clk 0:01:03.1]} 33. dxe5
{[%clk 0:00:55.2]} 33... Kg7 {[%clk 0:00:59.1]} 34. Rb5 {[%clk 0:00:53.2]} 34...
Nc4 {[%clk 0:00:53.9]} 35. Rab1 {[%clk 0:00:50.6]} 35... b6 {[%clk 0:00:54.2]}
36. Qc1 {[%clk 0:00:45.6]} 36... Qe7 {[%clk 0:00:49.2]} 37. f4 {[%clk
0:00:45.6]} 37... Rf8 {[%clk 0:00:47.7]} 38. fxg5 {[%clk 0:00:44.7]} 38... Na3
{[%clk 0:00:44.6]} 39. Qd1 {[%clk 0:00:35.1]} 39... Nxb5 {[%clk 0:00:38.1]} 40.
axb5 {[%clk 0:00:34.9]} 40... Ra2 {[%clk 0:00:32.8]} 41. Qxh5 {[%clk 0:00:34.7]}
41... Qf7 {[%clk 0:00:27.6]} 42. Qh6+ {[%clk 0:00:34.8]} 42... Kg8 {[%clk
0:00:28.1]} 43. Qf6 {[%clk 0:00:35]} 43... Qe8 {[%clk 0:00:20.5]} 44. Qh6 {[%clk
0:00:32.2]} 44... Rff2 {[%clk 0:00:20.2]} 45. g6 {[%clk 0:00:13.5]} 45... Rxg2+
{[%clk 0:00:20.1]} 46. Kh1 {[%clk 0:00:10.2]} 46... Rxh2+ {[%clk 0:00:19.8]} 47.
Qxh2 {[%clk 0:00:10.1]} 47... Rxh2+ {[%clk 0:00:19.5]} 48. Kxh2 {[%clk 0:00:11]}
48... Qe7 {[%clk 0:00:19.6]} 49. Kh3 {[%clk 0:00:06.5]} 49... Qg5 {[%clk
0:00:18.8]} 0-1

[Event "Late-Titled-Tuesday-Blitz-November-28-2023"]
[Site "Chess.com"]
[Date "2023.11.28"]
[Round "2"]
[White "HalfIsCrayfish"]
[Black "TigrVShlyape"]
[Result "1-0"]
[WhiteElo "2605"]
[BlackElo "2963"]
[TimeControl "180+1"]
[EndTime "14:17:22 PST"]
[Termination "HalfIsCrayfish won on time"]

1. e4 {[%clk 0:03:00.9]} 1... c5 {[%clk 0:02:58.5]} 2. Nc3 {[%clk 0:03:01.1]}
2... Nc6 {[%clk 0:02:57.5]} 3. Bb5 {[%clk 0:03:01.6]} 3... Nd4 {[%clk
0:02:54.8]} 4. Nf3 {[%clk 0:03:01.9]} 4... Nxb5 {[%clk 0:02:52.3]} 5. Nxb5
{[%clk 0:03:02.8]} 5... a6 {[%clk 0:02:51.6]} 6. Nc3 {[%clk 0:03:03]} 6... e6
{[%clk 0:02:51.7]} 7. d4 {[%clk 0:03:03.6]} 7... cxd4 {[%clk 0:02:51.3]} 8. Qxd4
{[%clk 0:03:03.9]} 8... b5 {[%clk 0:02:49.1]} 9. Bf4 {[%clk 0:02:58]} 9... Bb7
{[%clk 0:02:44.5]} 10. O-O-O {[%clk 0:02:57.6]} 10... Ne7 {[%clk 0:02:23]} 11.
e5 {[%clk 0:02:25.5]} 11... Bxf3 {[%clk 0:02:15.7]} 12. gxf3 {[%clk 0:02:25.3]}
12... Nf5 {[%clk 0:02:15.6]} 13. Qd3 {[%clk 0:02:23.9]} 13... Rc8 {[%clk
0:02:09.3]} 14. Ne4 {[%clk 0:02:23]} 14... Qc7 {[%clk 0:02:06.4]} 15. Kb1 {[%clk
0:02:19.5]} 15... Be7 {[%clk 0:02:02.5]} 16. Ng3 {[%clk 0:02:17.6]} 16... Nh4
{[%clk 0:01:33.2]} 17. c3 {[%clk 0:02:01.5]} 17... Ng6 {[%clk 0:01:25.8]} 18.
Qe4 {[%clk 0:01:01.7]} 18... O-O {[%clk 0:01:24.5]} 19. h4 {[%clk 0:01:01.8]}
19... Qc6 {[%clk 0:01:17.5]} 20. Qxc6 {[%clk 0:00:51.5]} 20... dxc6 {[%clk
0:01:14.1]} 21. Ne2 {[%clk 0:00:51.3]} 21... Bxh4 {[%clk 0:01:07.4]} 22. Be3
{[%clk 0:00:45.5]} 22... Rfd8 {[%clk 0:01:04.1]} 23. f4 {[%clk 0:00:42]} 23...
Rxd1+ {[%clk 0:00:56.6]} 24. Rxd1 {[%clk 0:00:42.9]} 24... Rd8 {[%clk
0:00:56.5]} 25. Rh1 {[%clk 0:00:38.3]} 25... Be7 {[%clk 0:00:53.2]} 26. Nd4
{[%clk 0:00:37.4]} 26... c5 {[%clk 0:00:50.9]} 27. Nc6 {[%clk 0:00:36.3]} 27...
Rc8 {[%clk 0:00:51]} 28. Na5 {[%clk 0:00:32.5]} 28... Kf8 {[%clk 0:00:44.5]} 29.
Rxh7 {[%clk 0:00:29.1]} 29... Kg8 {[%clk 0:00:28.5]} 30. Rh1 {[%clk 0:00:29.3]}
30... Nh4 {[%clk 0:00:27.5]} 31. Rd1 {[%clk 0:00:25]} 31... Rc7 {[%clk
0:00:26.2]} 32. Nb3 {[%clk 0:00:21.3]} 32... Kh7 {[%clk 0:00:24.2]} 33. Rh1
{[%clk 0:00:18.7]} 33... Kg6 {[%clk 0:00:21.4]} 34. Nxc5 {[%clk 0:00:13.5]}
34... Bxc5 {[%clk 0:00:21.2]} 35. Rxh4 {[%clk 0:00:13.6]} 35... Kf5 {[%clk
0:00:18]} 36. Kc2 {[%clk 0:00:09.7]} 36... Bxe3 {[%clk 0:00:16.4]} 37. fxe3
{[%clk 0:00:10.6]} 37... Ke4 {[%clk 0:00:15.9]} 38. Kd2 {[%clk 0:00:07]} 38...
Kf3 {[%clk 0:00:14.9]} 39. Rh3+ {[%clk 0:00:06.7]} 39... Kg2 {[%clk 0:00:13.7]}
40. Rh7 {[%clk 0:00:07.1]} 40... g6 {[%clk 0:00:13.1]} 41. e4 {[%clk 0:00:05.6]}
41... Kf3 {[%clk 0:00:12.8]} 42. f5 {[%clk 0:00:06]} 42... Rc5 {[%clk
0:00:05.8]} 43. Rxf7 {[%clk 0:00:04.7]} 43... gxf5 {[%clk 0:00:04.8]} 44. exf5
{[%clk 0:00:04.4]} 44... Rxe5 {[%clk 0:00:03.3]} 45. fxe6+ {[%clk 0:00:04.6]}
45... Ke4 {[%clk 0:00:03.5]} 46. e7 {[%clk 0:00:05.3]} 46... Re6 {[%clk
0:00:02.3]} 47. Kc2 {[%clk 0:00:04.5]} 47... Kd5 {[%clk 0:00:01.7]} 48. a3
{[%clk 0:00:04.4]} 1-0

[Event "Late-Titled-Tuesday-Blitz-November-28-2023"]
[Site "Chess.com"]
[Date "2023.11.28"]
[Round "2"]
[White "Elbebiber"]
[Black "Chessbard1972"]
[Result "1/2-1/2"]
[WhiteElo "2137"]
[BlackElo "2411"]
[TimeControl "180+1"]
[EndTime "14:17:23 PST"]
[Termination "Game drawn by repetition"]

1. d4 {[%clk 0:03:00.9]} 1... Nf6 {[%clk 0:02:59.2]} 2. Bg5 {[%clk 0:03:00.2]}
2... Ne4 {[%clk 0:02:57]} 3. Bf4 {[%clk 0:03:00.1]} 3... d5 {[%clk 0:02:56.5]}
4. e3 {[%clk 0:02:54.8]} 4... c5 {[%clk 0:02:55.3]} 5. Nd2 {[%clk 0:02:52.6]}
5... Nf6 {[%clk 0:02:54.8]} 6. Ngf3 {[%clk 0:02:44.1]} 6... Nc6 {[%clk
0:02:53.6]} 7. dxc5 {[%clk 0:02:38.6]} 7... Bg4 {[%clk 0:02:40.4]} 8. Be2 {[%clk
0:02:35.2]} 8... Qa5 {[%clk 0:02:33.6]} 9. c3 {[%clk 0:02:32.2]} 9... Qxc5
{[%clk 0:02:33.2]} 10. h3 {[%clk 0:02:23.7]} 10... Bh5 {[%clk 0:02:30.6]} 11.
Ne5 {[%clk 0:02:17.6]} 11... Bxe2 {[%clk 0:02:28.6]} 12. Qxe2 {[%clk 0:02:17.3]}
12... Qb6 {[%clk 0:02:26.9]} 13. Nb3 {[%clk 0:02:07.7]} 13... e6 {[%clk
0:02:26.2]} 14. O-O {[%clk 0:02:06.5]} 14... Be7 {[%clk 0:02:25.2]} 15. Rfd1
{[%clk 0:02:04.6]} 15... O-O {[%clk 0:02:24.1]} 16. Nd4 {[%clk 0:01:57.8]} 16...
Nxe5 {[%clk 0:02:18.8]} 17. Bxe5 {[%clk 0:01:57.9]} 17... Nd7 {[%clk 0:02:19.2]}
18. Bg3 {[%clk 0:01:54.8]} 18... Bf6 {[%clk 0:02:15.7]} 19. Rab1 {[%clk
0:01:51.4]} 19... Rac8 {[%clk 0:02:11.7]} 20. Qg4 {[%clk 0:01:34]} 20... Ne5
{[%clk 0:02:01.5]} 21. Bxe5 {[%clk 0:01:32.4]} 21... Bxe5 {[%clk 0:02:00.9]} 22.
Qe2 {[%clk 0:01:30]} 22... a6 {[%clk 0:01:56.8]} 23. Qd3 {[%clk 0:01:28.6]}
23... Rfd8 {[%clk 0:01:55.5]} 24. Qe2 {[%clk 0:01:28.6]} 24... Bf6 {[%clk
0:01:53.9]} 25. Kf1 {[%clk 0:01:28]} 25... h6 {[%clk 0:01:53.8]} 26. Qd3 {[%clk
0:01:28]} 26... Rc4 {[%clk 0:01:51.8]} 27. Qe2 {[%clk 0:01:27.5]} 27... Qc7
{[%clk 0:01:49]} 28. Kg1 {[%clk 0:01:25]} 28... b5 {[%clk 0:01:48.4]} 29. g3
{[%clk 0:01:20.4]} 29... g6 {[%clk 0:01:46.3]} 30. Kg2 {[%clk 0:01:20.8]} 30...
Kg7 {[%clk 0:01:46]} 31. Qf3 {[%clk 0:01:20.6]} 31... Rc8 {[%clk 0:01:39.3]} 32.
Qe2 {[%clk 0:01:20.6]} 32... Qb6 {[%clk 0:01:37.8]} 33. a3 {[%clk 0:01:20.4]}
33... a5 {[%clk 0:01:37.6]} 34. Nc2 {[%clk 0:01:14.4]} 34... Qb7 {[%clk
0:01:33.7]} 35. Kg1 {[%clk 0:01:13.9]} 35... e5 {[%clk 0:01:30.9]} 36. Qd3
{[%clk 0:01:09.3]} 36... Rd8 {[%clk 0:01:27.7]} 37. h4 {[%clk 0:01:06]} 37... h5
{[%clk 0:01:27.2]} 38. Qd2 {[%clk 0:01:01.4]} 38... Qb6 {[%clk 0:01:23.3]} 39.
Qd3 {[%clk 0:01:01.4]} 39... d4 {[%clk 0:01:17.8]} 40. cxd4 {[%clk 0:00:59.2]}
40... exd4 {[%clk 0:01:17.2]} 41. Nxd4 {[%clk 0:00:56.5]} 41... Bxd4 {[%clk
0:01:16.5]} 42. exd4 {[%clk 0:00:56.9]} 42... Rcxd4 {[%clk 0:01:16.7]} 43. Qe2
{[%clk 0:00:57.1]} 43... R8d5 {[%clk 0:01:01.3]} 44. Qc2 {[%clk 0:00:52.4]}
44... b4 {[%clk 0:00:58.8]} 45. axb4 {[%clk 0:00:47]} 45... axb4 {[%clk
0:00:58.9]} 46. b3 {[%clk 0:00:45.2]} 46... Kg8 {[%clk 0:00:55.7]} 47. Qc8+
{[%clk 0:00:44.4]} 47... Rd8 {[%clk 0:00:53.8]} 48. Qc2 {[%clk 0:00:43.6]} 48...
Qd6 {[%clk 0:00:51.9]} 49. Rxd4 {[%clk 0:00:42.8]} 49... Qxd4 {[%clk 0:00:52.1]}
50. Re1 {[%clk 0:00:41.9]} 50... Qc3 {[%clk 0:00:49.1]} 51. Qxc3 {[%clk
0:00:36.1]} 51... bxc3 {[%clk 0:00:48.2]} 52. Rc1 {[%clk 0:00:36.3]} 52... Rc8
{[%clk 0:00:38.9]} 53. b4 {[%clk 0:00:34.6]} 53... Kg7 {[%clk 0:00:36.7]} 54. b5
{[%clk 0:00:34]} 54... Kf6 {[%clk 0:00:30.4]} 55. b6 {[%clk 0:00:34.3]} 55...
Ke5 {[%clk 0:00:29.7]} 56. b7 {[%clk 0:00:33.3]} 56... Rb8 {[%clk 0:00:29.4]}
57. Rxc3 {[%clk 0:00:32.6]} 57... Rxb7 {[%clk 0:00:29.7]} 58. Kg2 {[%clk
0:00:31.7]} 58... f6 {[%clk 0:00:27.2]} 59. Re3+ {[%clk 0:00:29.4]} 59... Kf5
{[%clk 0:00:26]} 60. Rf3+ {[%clk 0:00:29.8]} 60... Ke6 {[%clk 0:00:26.1]} 61.
Re3+ {[%clk 0:00:30.1]} 61... Kd5 {[%clk 0:00:26]} 62. Rd3+ {[%clk 0:00:30.5]}
62... Kc4 {[%clk 0:00:24.5]} 63. Rd6 {[%clk 0:00:30.3]} 63... Rf7 {[%clk
0:00:23.8]} 64. Kf3 {[%clk 0:00:29.4]} 64... Kc5 {[%clk 0:00:24.3]} 65. Ra6
{[%clk 0:00:29]} 65... Kd5 {[%clk 0:00:24.3]} 66. Rb6 {[%clk 0:00:29.2]} 66...
Ke5 {[%clk 0:00:24.1]} 67. Rb5+ {[%clk 0:00:29.2]} 67... Ke6 {[%clk 0:00:23.7]}
68. Rb6+ {[%clk 0:00:29.6]} 68... Ke5 {[%clk 0:00:24]} 69. Rb5+ {[%clk
0:00:30.1]} 69... Ke6 {[%clk 0:00:24.4]} 70. Rb6+ {[%clk 0:00:30.6]} 70... Ke5
{[%clk 0:00:25]} 1/2-1/2

[Event "Late-Titled-Tuesday-Blitz-November-28-2023"]
[Site "Chess.com"]
[Date "2023.11.28"]
[Round "2"]
[White "OparinGrigoriy"]
[Black "DanylaBagrov"]
[Result "1-0"]
[WhiteElo "3005"]
[BlackElo "2591"]
[TimeControl "180+1"]
[EndTime "14:17:26 PST"]
[Termination "OparinGrigoriy won by resignation"]

1. Nc3 {[%clk 0:02:57.8]} 1... Nc6 {[%clk 0:02:53.8]} 2. e4 {[%clk 0:02:57.3]}
2... e5 {[%clk 0:02:50.2]} 3. Bc4 {[%clk 0:02:57.6]} 3... Nf6 {[%clk 0:02:48.2]}
4. d3 {[%clk 0:02:57.8]} 4... Bc5 {[%clk 0:02:44.1]} 5. f4 {[%clk 0:02:51.6]}
5... d6 {[%clk 0:02:40.4]} 6. Nf3 {[%clk 0:02:50.5]} 6... Bg4 {[%clk 0:02:26.8]}
7. Na4 {[%clk 0:02:43.1]} 7... Nd4 {[%clk 0:02:00.6]} 8. Nxc5 {[%clk 0:02:37.9]}
8... dxc5 {[%clk 0:02:00.2]} 9. fxe5 {[%clk 0:02:16.9]} 9... Bxf3 {[%clk
0:01:38.1]} 10. gxf3 {[%clk 0:02:17.8]} 10... Nxe4 {[%clk 0:01:38]} 11. O-O
{[%clk 0:02:17.6]} 11... Ng5 {[%clk 0:01:32.7]} 12. f4 {[%clk 0:02:11.6]} 12...
Nh3+ {[%clk 0:01:20.6]} 13. Kg2 {[%clk 0:02:11.5]} 13... Qh4 {[%clk 0:01:19.3]}
14. f5 {[%clk 0:02:08.3]} 14... O-O-O {[%clk 0:01:03.9]} 15. c3 {[%clk
0:01:47.7]} 15... Nc6 {[%clk 0:01:00.3]} 16. Qf3 {[%clk 0:01:48.1]} 16... Ng5
{[%clk 0:00:56.8]} 17. Qg3 {[%clk 0:01:39.7]} 17... Qxg3+ {[%clk 0:00:55.1]} 18.
Kxg3 {[%clk 0:01:40.6]} 18... h6 {[%clk 0:00:50]} 19. h4 {[%clk 0:01:38.1]}
19... Nh7 {[%clk 0:00:50.3]} 20. Bf4 {[%clk 0:01:38.6]} 20... f6 {[%clk
0:00:45.7]} 21. e6 {[%clk 0:01:35.6]} 21... Ne7 {[%clk 0:00:46.3]} 22. Be3
{[%clk 0:01:31.7]} 22... b6 {[%clk 0:00:44.4]} 23. Rad1 {[%clk 0:01:30.5]} 23...
Nf8 {[%clk 0:00:32.2]} 24. d4 {[%clk 0:01:28.4]} 24... cxd4 {[%clk 0:00:27.5]}
25. Rxd4 {[%clk 0:01:29.3]} 25... Rxd4 {[%clk 0:00:26]} 26. cxd4 {[%clk
0:01:29.6]} 26... c6 {[%clk 0:00:21.9]} 27. h5 {[%clk 0:01:29.5]} 27... Nh7
{[%clk 0:00:21.6]} 28. Ba6+ {[%clk 0:01:21.5]} 28... Kd8 {[%clk 0:00:17.5]} 29.
Kg4 {[%clk 0:01:19]} 29... Ng5 {[%clk 0:00:16.6]} 30. Rc1 {[%clk 0:01:18.6]}
30... Re8 {[%clk 0:00:12.6]} 31. Bf4 {[%clk 0:01:16]} 31... Ne4 {[%clk
0:00:09.9]} 32. b4 {[%clk 0:01:11.9]} 32... Rf8 {[%clk 0:00:08.3]} 33. b5 {[%clk
0:01:11.8]} 33... c5 {[%clk 0:00:06]} 34. Bb7 {[%clk 0:01:08.4]} 34... Nf2+
{[%clk 0:00:03.9]} 35. Kf3 {[%clk 0:00:57.7]} 35... Nd3 {[%clk 0:00:04.8]} 36.
dxc5 {[%clk 0:00:49.8]} 36... Nxc1 {[%clk 0:00:04.3]} 37. c6 {[%clk 0:00:50.5]}
37... Nd5 {[%clk 0:00:04.8]} 38. Bxc1 {[%clk 0:00:47.3]} 38... Re8 {[%clk
0:00:04.8]} 39. Bd2 {[%clk 0:00:40.8]} 39... Nc7 {[%clk 0:00:05.1]} 40. a4
{[%clk 0:00:38.7]} 40... Re7 {[%clk 0:00:05.4]} 41. Ke4 {[%clk 0:00:38.4]} 41...
Re8 {[%clk 0:00:06]} 42. Bb4 {[%clk 0:00:37.2]} 42... Re7 {[%clk 0:00:04.5]} 43.
Bc8 {[%clk 0:00:35.4]} 43... Re8 {[%clk 0:00:03.3]} 44. Bd7 {[%clk 0:00:36]}
44... Re7 {[%clk 0:00:03.9]} 45. Bd6 {[%clk 0:00:35.2]} 45... Na8 {[%clk
0:00:03.7]} 46. Kd4 {[%clk 0:00:28.6]} 46... Nc7 {[%clk 0:00:04]} 47. Kc4 {[%clk
0:00:28.7]} 47... Na8 {[%clk 0:00:04]} 48. Bb8 {[%clk 0:00:26.8]} 48... Nc7
{[%clk 0:00:02.7]} 49. Bxa7 {[%clk 0:00:26.9]} 49... Na8 {[%clk 0:00:03.1]} 50.
Bb8 {[%clk 0:00:26.5]} 50... Re8 {[%clk 0:00:02.9]} 51. Bd6 {[%clk 0:00:26.4]}
51... Re7 {[%clk 0:00:03.3]} 52. a5 {[%clk 0:00:25.1]} 52... Rxd7 {[%clk
0:00:02.4]} 53. exd7 {[%clk 0:00:24.2]} 53... bxa5 {[%clk 0:00:03]} 54. Kc5
{[%clk 0:00:23.9]} 54... a4 {[%clk 0:00:03.2]} 55. b6 {[%clk 0:00:24.6]} 55...
Nxb6 {[%clk 0:00:02.8]} 56. Kxb6 {[%clk 0:00:25.5]} 56... a3 {[%clk 0:00:03.6]}
57. Kb7 {[%clk 0:00:22.3]} 57... g5 {[%clk 0:00:04.5]} 58. c7+ {[%clk
0:00:20.8]} 58... Kxd7 {[%clk 0:00:04.3]} 59. c8=Q+ {[%clk 0:00:21.7]} 1-0

[Event "Late-Titled-Tuesday-Blitz-November-28-2023"]
[Site "Chess.com"]
[Date "2023.11.28"]
[Round "2"]
[White "Arash_Tahbaz"]
[Black "djano"]
[Result "1-0"]
[WhiteElo "2904"]
[BlackElo "2555"]
[TimeControl "180+1"]
[EndTime "14:17:27 PST"]
[Termination "Arash_Tahbaz won by resignation"]

1. Nf3 {[%clk 0:02:57.8]} 1... g6 {[%clk 0:02:59.4]} 2. g3 {[%clk 0:02:58.7]}
2... Bg7 {[%clk 0:02:59.8]} 3. Bg2 {[%clk 0:02:59.6]} 3... Nf6 {[%clk
0:02:58.6]} 4. O-O {[%clk 0:03:00.5]} 4... O-O {[%clk 0:02:59.2]} 5. d3 {[%clk
0:03:00.6]} 5... d5 {[%clk 0:02:59.2]} 6. Nbd2 {[%clk 0:03:00.8]} 6... d4 {[%clk
0:02:59]} 7. c3 {[%clk 0:02:58.4]} 7... c5 {[%clk 0:02:58.9]} 8. cxd4 {[%clk
0:02:50.2]} 8... cxd4 {[%clk 0:02:58.3]} 9. Nc4 {[%clk 0:02:47.4]} 9... Nc6
{[%clk 0:02:58.4]} 10. Nfe5 {[%clk 0:02:40.1]} 10... Nxe5 {[%clk 0:02:46.3]} 11.
Nxe5 {[%clk 0:02:41]} 11... Nd7 {[%clk 0:02:38.6]} 12. Nc4 {[%clk 0:02:32.3]}
12... Nb6 {[%clk 0:02:36.5]} 13. Na5 {[%clk 0:02:28.4]} 13... Rb8 {[%clk
0:02:15]} 14. Bd2 {[%clk 0:02:27.5]} 14... e5 {[%clk 0:02:08.1]} 15. Rc1 {[%clk
0:02:22.5]} 15... Re8 {[%clk 0:02:04.9]} 16. Qc2 {[%clk 0:02:20.2]} 16... Nd5
{[%clk 0:01:44.7]} 17. Qc5 {[%clk 0:01:27.9]} 17... Be6 {[%clk 0:01:34.1]} 18.
Nc4 {[%clk 0:01:26.8]} 18... b6 {[%clk 0:01:28]} 19. Qd6 {[%clk 0:01:26.5]}
19... Qxd6 {[%clk 0:01:16]} 20. Nxd6 {[%clk 0:01:27.4]} 20... Red8 {[%clk
0:01:16.6]} 21. Nb5 {[%clk 0:01:27.1]} 21... a6 {[%clk 0:01:11.2]} 22. Na7
{[%clk 0:01:24]} 22... Rd7 {[%clk 0:00:59.9]} 23. Nc6 {[%clk 0:01:23.1]} 23...
Re8 {[%clk 0:00:59]} 24. Rc2 {[%clk 0:01:23.4]} 24... f5 {[%clk 0:00:50.8]} 25.
Rfc1 {[%clk 0:01:23.4]} 25... Bf7 {[%clk 0:00:46.7]} 26. h4 {[%clk 0:01:22.6]}
26... e4 {[%clk 0:00:46]} 27. Be1 {[%clk 0:00:51.2]} 27... a5 {[%clk 0:00:43.8]}
28. a4 {[%clk 0:00:49.6]} 28... Bf6 {[%clk 0:00:42.1]} 29. b4 {[%clk 0:00:48.4]}
29... axb4 {[%clk 0:00:39.2]} 30. Nxb4 {[%clk 0:00:49.3]} 30... Nc3 {[%clk
0:00:39.7]} 31. Kf1 {[%clk 0:00:43.8]} 31... Bb3 {[%clk 0:00:35.1]} 32. Rb2
{[%clk 0:00:43.8]} 32... Bxa4 {[%clk 0:00:35]} 33. Na2 {[%clk 0:00:37.8]} 33...
exd3 {[%clk 0:00:28.9]} 34. exd3 {[%clk 0:00:37.3]} 34... Bb5 {[%clk 0:00:23.3]}
35. Nxc3 {[%clk 0:00:31.5]} 35... Bxd3+ {[%clk 0:00:16.7]} 36. Ne2 {[%clk
0:00:29.1]} 36... Rde7 {[%clk 0:00:14.8]} 37. Bf3 {[%clk 0:00:29.3]} 37... b5
{[%clk 0:00:15.3]} 38. Bb4 {[%clk 0:00:17.5]} 38... Re6 {[%clk 0:00:15.3]} 39.
Rd2 {[%clk 0:00:14.8]} 39... Bc4 {[%clk 0:00:15]} 40. Rxc4 {[%clk 0:00:15.4]}
40... bxc4 {[%clk 0:00:15.9]} 41. Nxd4 {[%clk 0:00:14]} 41... Rb6 {[%clk
0:00:10.4]} 42. Bc5 {[%clk 0:00:12.1]} 42... Rb1+ {[%clk 0:00:11.3]} 43. Kg2
{[%clk 0:00:12.4]} 43... Rc1 {[%clk 0:00:09.2]} 44. Ba3 {[%clk 0:00:09]} 44...
Ra1 {[%clk 0:00:08]} 45. Bb2 {[%clk 0:00:08.9]} 45... Ra2 {[%clk 0:00:08.3]} 46.
Bd5+ {[%clk 0:00:09.3]} 46... Kh8 {[%clk 0:00:08.9]} 47. Bxc4 {[%clk 0:00:09.8]}
47... Ra4 {[%clk 0:00:09.6]} 48. Bb5 {[%clk 0:00:10]} 48... Rea8 {[%clk
0:00:05.4]} 49. Bxa4 {[%clk 0:00:10.1]} 49... Rxa4 {[%clk 0:00:06.3]} 50. Nf3
{[%clk 0:00:10.6]} 50... Kg7 {[%clk 0:00:06.4]} 51. Rd7+ {[%clk 0:00:10.1]}
51... Kf8 {[%clk 0:00:06.8]} 52. Bxf6 {[%clk 0:00:11]} 1-0